bitfinex-derivatives/quotes_SOLF0:USTF0_20250821
["timestamp","ask_amount","ask_price","bid_price","bid_amount"]
[1755806122588,2.84,180.2,180.17,3.01]
[1755806122987,2.84,180.2,180.17,3.04850196]
[1755806123487,3.88770281,180.27,180.17,0.03850196]
[1755806123688,5.68004991,180.26,180.18,6.72770281]
[1755806123986,3.04,180.26,180.18,6.72770281]
[1755806124577,3.04,180.26,180.2,0.0362687]
[1755806125083,3.04,180.26,180.2,3.92397151]
[1755806126085,3.04,180.26,180.2,6.76397151]
[1755806126286,3.04,180.26,180.2,3.92397151]
[1755806133293,3.04,180.26,180.21,2.84]
[1755806133495,3.04,180.3,180.23,2.84]
[1755806133694,3.04,180.3,180.24,3.88770281]
[1755806133894,3.04,180.3,180.23,2.84]
[1755806134092,3.04,180.3,180.23,6.72770281]
[1755806134297,137.14,180.33,180.25,0.03767795]
[1755806134495,3.04,180.28,180.25,0.03767795]
[1755806134698,3.88770281,180.34,180.25,0.03767795]
[1755806134699,3.04,180.3,180.26,2.84]
[1755806134992,3.88770281,180.34,180.26,2.84]
[1755806135497,3.04,180.29,180.26,2.84]
[1755806135897,3.04,180.28,180.25,3.92538076]
[1755806137193,3.04,180.28,180.25,6.76538076]
[1755806137595,3.04,180.28,180.25,2.87767795]
[1755806140604,3.04,180.33,180.25,0.03767795]
[1755806144401,3.04,180.29,180.25,0.03767795]
[1755806144899,3.04,180.29,180.2,2.84]
[1755806145100,3.04,180.29,180.25,0.03587804]
[1755806149301,3.04,180.27,180.25,0.03587804]
[1755806149694,3.04,180.27,180.17,6.72770281]
[1755806149996,3.04,180.27,180.24,0.03962815]
[1755806150401,3.04,180.27,180.17,6.72770281]
[1755806150903,3.04,180.27,180.24,0.03555081]
[1755806151105,3.04,180.27,180.17,12.27920281]
[1755806151304,3.04,180.27,180.17,6.72770281]
[1755806151499,3.88770281,180.28,180.24,0.0354198]
[1755806151700,3.04,180.25,180.19,2.84]
[1755806151999,3.04,180.25,180.24,0.03770281]
[1755806152400,3.04,180.25,180.19,6.72770281]
[1755806152802,3.04,180.25,180.23,0.03910068]
[1755806153506,3.88770281,180.29,180.23,0.03910068]
[1755806153900,2.86,180.25,180.23,0.03910068]
[1755806154301,2.86,180.28,180.23,0.03910068]
[1755806154503,2.86,180.26,180.23,0.03910068]
[1755806154705,3.88770281,180.27,180.23,0.03910068]
[1755806154902,2.86,180.24,180.23,0.03910068]
[1755806160208,9.40048712,180.24,180.23,0.03910068]
[1755806160411,9.40048712,180.24,180.16,2.87]
[1755806160412,2.86,180.23,180.13,2.87]
[1755806160712,2.86,180.21,180.13,2.87]
[1755806160909,2.86,180.19,180.13,2.87]
[1755806161606,0.03630856,180.18,180.12,3.88770281]
[1755806161808,0.03630856,180.18,180.15,2.87]
[1755806162008,2.89630856,180.18,180.15,2.87]
[1755806162209,2.89630856,180.18,180.12,6.75770281]
[1755806162601,0.03630856,180.18,180.12,9.44070281]
[1755806162804,0.03630856,180.18,180.16,2.87]
[1755806165310,0.03630856,180.18,180.13,5.5527]
[1755806165913,0.03630856,180.18,180.16,2.87]
[1755806166314,0.03630856,180.18,180.14,8.4224]
[1755806166514,0.03630856,180.18,180.14,3.88770281]
[1755806166716,0.03630856,180.18,180.17,2.87]
[1755806168912,0.03630856,180.18,180.17,8.4216]
[1755806169215,2.86,180.27,180.17,2.87]
[1755806169417,2.86,180.27,180.19,5.5508]
[1755806169617,2.86,180.27,180.2,2.87]
[1755806170217,2.86,180.27,180.18,3.88770281]
[1755806170516,2.86,180.25,180.22,0.039139]
[1755806170715,3.88770281,180.29,180.22,0.039139]
[1755806170716,2.86,180.24,180.22,0.039139]
[1755806171618,3.88770281,180.29,180.22,0.039139]
[1755806171619,2.86,180.28,180.22,0.039139]
[1755806171819,2.86,180.26,180.22,0.039139]
[1755806172017,2.86,180.24,180.22,0.039139]
[1755806172317,2.86,180.3,180.22,2.909139]
[1755806172512,2.65298914,180.29,180.22,2.909139]
[1755806172916,2.86,180.28,180.22,0.039139]
[1755806173114,2.86,180.26,180.22,2.909139]
[1755806173620,2.86,180.26,180.23,2.87]
[1755806175024,2.86,180.29,180.22,0.039139]
[1755806175213,6.56275944,180.28,180.22,0.039139]
[1755806175418,2.86,180.25,180.22,0.039139]
[1755806175719,2.86,180.24,180.22,0.039139]
[1755806176718,2.86,180.23,180.22,0.039139]
[1755806176913,5.51224652,180.23,180.22,0.039139]
[1755806177419,9.42089485,180.23,180.22,0.039139]
[1755806180025,2.86,180.22,180.12,2.87]
[1755806180225,2.86,180.2,180.12,2.87]
[1755806180726,2.86,180.2,180.14,2.87]
[1755806181321,0.03744867,180.19,180.13,3.88770281]
[1755806181528,2.89744867,180.19,180.13,3.88770281]
[1755806181724,2.89744867,180.19,180.16,2.87]
[1755806182026,0.03744867,180.19,180.14,8.4225]
[1755806182221,0.03744867,180.19,180.13,3.88770281]
[1755806182728,0.03744867,180.19,180.16,2.84]
[1755806182918,0.03744867,180.19,180.13,9.44040281]
[1755806183120,0.03744867,180.19,180.15,2.84]
[1755806183429,0.03744867,180.19,180.13,9.44040281]
[1755806183630,0.03744867,180.19,180.14,2.84]
[1755806183825,0.03744867,180.19,180.16,2.84]
[1755806184024,2.87744867,180.19,180.16,2.84]
[1755806185732,2.84,180.18,180.09,2.84]
[1755806185930,2.84,180.18,180.12,3.88770281]
[1755806186132,2.84,180.18,180.12,6.72770281]
[1755806186435,0.03806816,180.17,180.12,6.72770281]
[1755806186626,0.03806816,180.17,180.13,2.84]
[1755806186831,0.03806816,180.17,180.14,2.84]
[1755806188133,2.87806816,180.17,180.14,2.84]
[1755806188336,2.87806816,180.17,180.11,2.84]
[1755806188337,2.84,180.16,180.11,2.84]
[1755806188531,2.84,180.16,180.1,3.88770281]
[1755806188732,2.84,180.16,180.12,2.84]
[1755806188932,0.03806816,180.17,180.12,2.84]
[1755806188933,2.84,180.15,180.12,2.84]
[1755806190835,2.84,180.16,180.13,2.84]
[1755806195038,2.84,180.15,180.1,6.72770281]
[1755806195238,2.84,180.15,180.11,2.84]
[1755806195439,2.84,180.15,180.12,2.84]
[1755806198949,2.84,180.16,180.13,2.84]
[1755806199247,2.87806816,180.17,180.09,8.394]
[1755806199551,2.84,180.17,180.09,5.554]
[1755806199743,0.03534392,180.15,180.09,5.554]
[1755806200050,0.03534392,180.15,180.12,2.84]
[1755806201051,2.87534392,180.15,180.12,2.84]
[1755806201545,2.87534392,180.15,180.08,156.88028379]
[1755806201546,0.03534392,180.15,180.13,2.84]
[1755806203343,0.03534392,180.15,180.14,2.84]
[1755806203752,0.03534392,180.15,180.11,2.84]
[1755806203945,0.03534392,180.15,180.12,2.84]
[1755806204151,2.84,180.14,180.11,2.84]
[1755806204448,2.84,180.14,180.1,3.88770281]
[1755806204749,2.84,180.14,180.06,2.84]
[1755806205551,0.03756471,180.12,180.06,2.84]
[1755806206350,0.03756471,180.12,180.07,2.84]
[1755806206653,0.03756471,180.12,180.09,2.84]
[1755806207855,0.03756471,180.12,180.1,2.84]
[1755806208353,0.03756471,180.12,180.06,2.84]
[1755806210054,0.03756471,180.12,180.06,8.3949]
[1755806210455,0.03756471,180.12,180.08,2.84]
[1755806210650,0.03756471,180.12,180.09,2.84]
[1755806210855,0.03756471,180.12,180.07,2.84]
[1755806211656,0.03756471,180.12,180.09,2.84]
[1755806211857,0.03756471,180.12,180.1,2.84]
[1755806212865,2.90756471,180.12,180.1,2.84]
[1755806216058,0.03756471,180.12,180.1,2.84]
[1755806216659,2.90756471,180.12,180.1,2.84]
[1755806216954,2.87,180.11,180.04,3.0]
[1755806217663,0.04049885,180.09,180.02,3.88770281]
[1755806217962,0.04049885,180.09,180.06,3.0]
[1755806218862,2.91049885,180.09,180.06,3.0]
[1755806220261,0.04049885,180.09,180.04,3.0]
[1755806220464,0.04049885,180.09,180.05,3.0]
[1755806220661,0.04049885,180.09,180.07,3.0]
[1755806221362,0.04049885,180.09,180.08,3.0]
[1755806225265,3.88770281,180.18,180.0,140.96770281]
[1755806225266,2.87,180.18,180.1,3.88770281]
[1755806225576,2.87,180.18,180.11,3.0]
[1755806226464,2.87,180.18,180.13,0.03748592]
[1755806226770,2.87,180.18,180.14,3.0]
[1755806227972,2.87,180.19,180.14,3.0]
[1755806228168,3.88770281,180.2,180.14,3.0]
[1755806228367,2.65776428,180.19,180.14,3.0]
[1755806228667,2.87,180.17,180.14,3.0]
[1755806229170,2.87,180.15,180.13,0.03748592]
[1755806229772,2.87,180.17,180.13,0.03748592]
[1755806229969,2.87,180.15,180.13,0.03748592]
[1755806230171,3.88770281,180.16,180.08,3.0]
[1755806230366,2.87,180.15,180.08,3.0]
[1755806230571,2.87,180.13,180.12,0.04127941]
[1755806230872,2.87,180.12,180.05,3.0]
[1755806231072,2.65717329,180.11,180.05,3.0]
[1755806231267,2.87,180.09,180.05,3.0]
[1755806231570,3.88770281,180.13,180.02,3.88770281]
[1755806231772,2.87,180.11,180.02,3.0]
[1755806231963,2.87,180.09,180.02,3.0]
[1755806232274,2.91139969,180.09,180.02,3.0]
[1755806233164,2.87,180.07,180.02,3.0]
[1755806233363,2.87,180.06,180.02,3.0]
[1755806233668,0.04139969,180.09,180.01,3.0]
[1755806233871,2.87,180.08,180.01,3.0]
[1755806234471,0.04227793,180.06,180.02,3.0]
[1755806234672,0.04227793,180.06,180.03,3.0]
[1755806234876,0.04227793,180.06,180.01,3.0]
[1755806236978,2.91227793,180.06,180.02,3.0]
[1755806237174,2.91227793,180.06,180.03,3.0]
[1755806237375,2.87,180.06,180.03,3.0]
[1755806237678,2.91150079,180.06,180.03,3.0]
[1755806238880,0.04150079,180.06,180.04,3.0]
[1755806239079,0.04150079,180.06,180.0,3.0]
[1755806241177,0.04150079,180.06,180.0,8.5568]
[1755806241572,0.04150079,180.06,180.01,3.0]
[1755806241770,0.04150079,180.06,180.01,8.5563]
[1755806242277,0.04150079,180.06,180.0,3.0]
[1755806242580,0.04150079,180.06,180.04,3.0]
[1755806242781,0.04150079,180.06,180.05,2.87]
[1755806242982,2.87,180.1,180.02,6.75770281]
[1755806243180,2.87,180.1,180.02,2.87]
[1755806243382,2.98516219,180.07,180.0,3.88770281]
[1755806243682,2.98516219,180.07,180.04,2.87]
[1755806244982,0.03516219,180.07,180.01,2.87]
[1755806245585,0.03516219,180.07,180.01,5.5565]
[1755806245780,0.03516219,180.07,180.03,2.87]
[1755806245979,0.03516219,180.07,180.05,2.87]
[1755806248281,2.98516219,180.07,180.03,2.87]
[1755806248478,0.03516219,180.07,180.0,2.87]
[1755806248683,3.88770281,180.12,180.03,2.87]
[1755806248684,2.95,180.1,180.03,2.87]
[1755806248983,0.04159526,180.05,180.03,2.87]
[1755806249180,0.04159526,180.05,180.0,3.88770281]
[1755806249375,0.04159526,180.05,180.01,2.87]
[1755806250489,0.04159526,180.05,180.01,8.4264]
[1755806250886,0.04159526,180.05,180.02,2.87]
[1755806251185,0.04159526,180.05,180.04,2.87]
[1755806265798,0.04159526,180.05,180.02,2.87]
[1755806265997,0.04159526,180.05,180.03,2.87]
[1755806266197,0.04159526,180.05,180.04,2.87]
[1755806269813,0.04159526,180.05,180.04,8.4256]
[1755806273106,2.66193416,180.12,180.07,3.1]
[1755806273308,5.60193416,180.12,180.09,3.1]
[1755806273509,2.66193416,180.11,180.09,3.1]
[1755806273999,2.94,180.11,180.09,3.1]
[1755806274905,2.94,180.11,180.08,0.03787351]
[1755806275104,2.94,180.11,180.08,3.13787351]
[1755806275307,2.94,180.11,180.08,0.03787351]
[1755806275500,192.30560958,180.13,180.09,3.1]
[1755806275710,5.60878913,180.12,180.09,3.1]
[1755806275914,5.60878913,180.11,180.08,3.13787351]
[1755806276112,2.66871947,180.1,180.08,3.13787351]
[1755806276914,2.94,180.11,180.08,3.13787351]
[1755806277110,2.66855375,180.1,180.08,3.13787351]
[1755806277312,2.66855375,180.1,180.08,0.03787351]
[1755806277507,2.94,180.09,180.08,0.03787351]
[1755806279516,194.79335998,180.13,180.08,0.03787351]
[1755806279719,2.94,180.1,180.08,0.03787351]
[1755806280020,2.94,180.09,180.08,0.03787351]
[1755806280611,5.60892028,180.09,180.08,0.03787351]
[1755806281009,8.09667068,180.09,180.08,0.03787351]
[1755806282420,5.60892028,180.09,180.08,0.03787351]
[1755806283221,2.94,180.08,180.0,6.98905866]
[1755806283423,2.94,180.06,180.0,6.98905866]
[1755806283718,2.94,180.06,180.0,3.88905866]
[1755806283921,2.94,180.04,179.98,6.98905866]
[1755806284423,2.94,180.08,180.01,3.88905866]
[1755806284622,0.03508269,180.03,180.02,3.1]
[1755806284820,2.97508269,180.03,179.98,6.98905866]
[1755806285015,2.94,180.03,179.98,3.88905866]
[1755806285220,2.94,180.03,180.0,3.1]
[1755806285423,0.04245975,180.02,180.0,3.1]
[1755806285717,0.04245975,180.02,179.98,9.44625866]
[1755806286022,0.04245975,180.02,180.01,3.1]
[1755806288127,0.04245975,180.02,180.01,8.6565]
[1755806288321,0.04245975,180.02,180.01,3.1]
[1755806289323,0.04245975,180.02,179.97,3.88905866]
[1755806289526,0.04245975,180.02,180.0,3.1]
[1755806289827,0.04245975,180.02,180.01,3.1]
[1755806293930,0.04245975,180.02,180.01,8.6565]
[1755806296433,0.04245975,180.02,180.01,3.1]
[1755806300337,0.04245975,180.02,180.01,8.6565]
[1755806301230,0.04245975,180.02,180.01,3.1]
[1755806302335,0.04245975,180.02,180.01,5.5889516]
[1755806307240,0.04245975,180.02,180.0,2.4889516]
[1755806307443,3.04245975,180.02,180.0,2.4889516]
[1755806307734,3.0,180.01,179.98,2.95]
[1755806307937,3.0,180.01,179.99,2.95]
[1755806308636,0.04245975,180.02,179.98,2.4889516]
[1755806308840,3.0,180.01,179.98,5.4389516]
[1755806309633,3.0,180.01,179.99,2.95]
[1755806310028,0.04245975,180.02,179.99,2.95]
[1755806310240,3.04245975,180.02,179.99,2.95]
[1755806310737,3.0,180.01,179.99,2.95]
[1755806311735,3.04245975,180.02,179.99,2.95]
[1755806313840,3.04245975,180.02,180.0,2.95]
[1755806316038,3.0,180.01,179.98,2.4889516]
[1755806316240,3.0,180.01,179.99,2.95]
[1755806317242,3.0,180.0,179.97,5.4389516]
[1755806317641,0.04245975,180.02,179.97,5.4389516]
[1755806317843,0.04245975,180.02,179.97,2.4889516]
[1755806318143,3.0,179.99,179.97,2.4889516]
[1755806318639,2.53141135,180.02,179.95,2.4889516]
[1755806318839,3.0,179.99,179.96,2.95]
[1755806319343,3.03805091,179.99,179.95,2.4889516]
[1755806319539,3.03805091,179.99,179.97,5.4389516]
[1755806319842,0.03805091,179.99,179.98,2.95]
[1755806326248,3.03805091,179.99,179.96,2.4889516]
[1755806326546,3.03805091,179.99,179.97,2.95]
[1755806326751,0.03805091,179.99,179.98,2.95]
[1755806327948,0.03805091,179.99,179.96,2.4889516]
[1755806327949,3.03805091,179.99,179.96,2.4889516]
[1755806328146,3.03805091,179.99,179.97,2.95]
[1755806328343,3.03805091,179.99,179.96,2.4889516]
[1755806328549,3.03805091,179.99,179.97,2.95]
[1755806329149,3.03805091,179.99,179.96,2.4889516]
[1755806329349,0.03805091,179.99,179.96,2.4889516]
[1755806329550,0.03805091,179.99,179.96,2.95]
[1755806329751,0.03805091,179.99,179.98,2.95]
[1755806330848,2.66602841,180.06,179.98,2.95]
[1755806331045,3.0,180.05,180.01,2.4889516]
[1755806331253,3.0,180.04,180.02,2.95]
[1755806331453,2.4889516,180.06,180.0,2.95]
[1755806331656,3.0,180.04,180.01,2.95]
[1755806332050,3.0,180.04,180.01,2.98836649]
[1755806332856,3.0,180.04,180.01,0.03836649]
[1755806333055,3.0,180.04,180.02,2.84]
[1755806334051,2.98,180.04,180.01,0.03836649]
[1755806334253,2.98,180.04,180.01,2.87836649]
[1755806334451,2.98,180.04,180.01,0.03836649]
[1755806334657,2.98,180.04,180.02,2.84]
[1755806334854,2.4889516,180.08,180.04,2.84]
[1755806335056,2.98,180.06,180.04,2.84]
[1755806335254,2.98,180.06,180.02,5.3289516]
[1755806335556,2.98,180.05,180.03,0.03631601]
[1755806336358,2.4889516,180.06,180.03,0.03631601]
[1755806336558,2.98,180.04,180.03,0.03631601]
[1755806339059,8.13653625,180.04,180.03,0.03631601]
[1755806340158,2.66758465,180.04,180.03,0.03631601]
[1755806340348,2.98,180.09,180.03,2.87631601]
[1755806340550,2.98,180.07,180.04,2.84]
[1755806340859,2.98,180.06,180.04,2.84]
[1755806341056,2.4889516,180.09,180.03,0.03631601]
[1755806341354,2.98,180.04,180.03,0.03631601]
[1755806341858,2.98,180.06,180.03,0.03631601]
[1755806342058,2.98,180.05,180.03,0.03631601]
[1755806342759,2.98,180.05,180.03,2.87631601]
[1755806342960,2.98,180.04,180.03,0.03631601]
[1755806343754,2.66799389,180.04,180.03,0.03631601]
[1755806343957,2.98,180.03,179.97,2.4889516]
[1755806344161,2.4889516,180.03,179.97,2.4889516]
[1755806344361,2.98,180.0,179.93,3.80674723]
[1755806344562,2.98,180.0,179.97,2.4889516]
[1755806344856,2.98,179.99,179.97,2.4889516]
[1755806345253,2.98,179.98,179.95,2.4889516]
[1755806345459,2.98,179.98,179.96,2.84]
[1755806346760,2.98,179.97,179.95,2.4889516]
[1755806347063,2.98,179.99,179.96,2.84]
[1755806347364,2.98,179.99,179.97,2.84]
[1755806347553,2.98,179.99,179.96,2.84]
[1755806347961,0.04008338,180.0,179.98,2.84]
[1755806348162,0.04008338,180.0,179.97,2.4889516]
[1755806348163,0.04008338,180.0,179.99,2.84]
[1755806349465,0.04008338,180.0,179.99,5.3289516]
[1755806351263,2.67502849,180.04,179.99,8.0461516]
[1755806351457,5.4689516,180.08,180.02,5.3289516]
[1755806351960,2.98,180.06,180.02,5.3289516]
[1755806352160,2.4889516,180.08,180.02,5.3289516]
[1755806352357,5.65548098,180.07,180.03,2.84]
[1755806352558,2.98,180.07,180.05,2.84]
[1755806352762,2.98,180.07,180.03,0.04265405]
[1755806352968,2.98,180.05,180.03,0.04265405]
[1755806353165,2.98,180.05,180.01,2.84]
[1755806353369,2.98,180.05,180.02,2.84]
[1755806353668,2.98,180.05,180.02,2.87493787]
[1755806354064,2.4889516,180.07,180.02,0.03493787]
[1755806354262,2.4889516,180.07,180.02,2.52388947]
[1755806354463,2.4889516,180.09,180.04,2.4889516]
[1755806354667,2.4889516,180.09,180.06,2.84]
[1755806355066,2.4889516,180.09,180.04,2.4889516]
[1755806355264,2.98,180.12,180.05,2.84]
[1755806355572,9.13274716,180.16,180.06,0.04130733]
[1755806355573,2.98,180.07,180.06,0.04130733]
[1755806355965,2.98,180.07,180.03,2.4889516]
[1755806356265,2.4889516,180.08,180.03,5.3289516]
[1755806356572,2.4889516,180.1,180.06,2.84]
[1755806356872,2.67341282,180.09,180.06,2.84]
[1755806357168,2.67341282,180.09,180.07,2.84]
[1755806357364,5.65341282,180.09,180.06,2.84]
[1755806357569,2.98,180.09,180.06,2.84]
[1755806358266,2.4889516,180.12,180.06,5.3289516]
[1755806358466,2.4889516,180.12,180.07,2.84]
[1755806358665,2.4889516,180.12,180.06,2.4889516]
[1755806358866,2.98,180.16,180.09,2.84]
[1755806359067,5.1628765,180.15,180.09,2.84]
[1755806359370,5.4689516,180.16,180.12,2.84]
[1755806359568,5.4689516,180.16,180.13,2.84]
[1755806360166,6.08849811,180.22,180.11,5.5535]
[1755806360467,2.67041167,180.21,180.16,2.84]
[1755806360667,2.98,180.19,180.15,2.4889516]
[1755806360863,2.98,180.19,180.15,5.3289516]
[1755806361071,2.98,180.19,180.17,0.04035789]
[1755806361568,2.98,180.18,180.17,0.04035789]
[1755806361774,5.4689516,180.18,180.17,0.04035789]
[1755806362370,2.98,180.18,180.17,0.04035789]
[1755806363270,2.88,180.2,180.17,0.04035789]
[1755806363774,2.88,180.19,180.13,6.74513509]
[1755806364073,2.88,180.19,180.17,0.03799281]
[1755806364478,2.88,180.23,180.17,2.89799281]
[1755806365572,6.76513509,180.28,180.17,6.7831279]
[1755806365770,2.66214578,180.27,180.18,2.86]
[1755806365976,6.76513509,180.28,180.18,2.86]
[1755806366174,6.76513509,180.28,180.2,2.86]
[1755806366377,6.76513509,180.28,180.21,3.92423323]
[1755806366378,2.88,180.28,180.21,3.92423323]
[1755806366579,2.88,180.28,180.22,2.86]
[1755806366875,2.88,180.31,180.23,3.88513509]
[1755806367075,2.88,180.31,180.23,3.9211866]
[1755806367271,2.88,180.31,180.24,2.86]
[1755806367777,2.88,180.31,180.23,0.03605151]
[1755806370173,2.88,180.31,180.24,6.74513509]
[1755806370582,2.88,180.34,180.27,2.86]
[1755806371580,2.88,180.34,180.29,2.90170196]
[1755806371874,2.88,180.35,180.29,2.90170196]
[1755806373775,3.88513509,180.33,180.29,0.04170196]
[1755806373971,6.76513509,180.3,180.29,0.04170196]
[1755806374174,2.88,180.29,180.21,2.86]
[1755806374375,2.88,180.26,180.19,373.1]
[1755806374879,2.88,180.26,180.19,375.96]
[1755806375080,2.88,180.26,180.19,379.84513509]
[1755806375476,0.03635996,180.24,180.19,376.98513509]
[1755806375675,0.03635996,180.24,180.2,2.86]
[1755806375880,0.03635996,180.24,180.21,6.74513509]
[1755806376176,2.88,180.22,180.19,373.1]
[1755806376384,0.03635996,180.24,180.19,376.98513509]
[1755806376582,0.03635996,180.24,180.21,2.86]
[1755806376778,0.03635996,180.24,180.22,2.86]
[1755806378085,0.03635996,180.24,180.23,2.86]
[1755806379181,0.03635996,180.24,180.23,6.74513509]
[1755806379678,0.03635996,180.24,180.21,3.88513509]
[1755806379886,0.03635996,180.24,180.22,2.86]
[1755806380085,0.03635996,180.24,180.19,513.96513509]
[1755806380285,0.03635996,180.24,180.21,2.86]
[1755806380876,0.03635996,180.24,180.22,2.86]
[1755806381076,0.03635996,180.24,180.2,2.86]
[1755806381379,0.03635996,180.24,180.22,2.86]
[1755806382392,2.91635996,180.24,180.19,375.96]
[1755806382585,2.91635996,180.24,180.2,2.86]
[1755806383477,2.88,180.23,180.19,510.04]
[1755806383680,2.88,180.22,180.19,510.04]
[1755806384083,2.88,180.22,180.17,136.94]
[1755806384280,2.88,180.21,180.17,139.78]
[1755806384480,0.03635996,180.24,180.18,2.86]
[1755806384877,0.03635996,180.24,180.18,6.74513509]
[1755806385388,2.91635996,180.24,180.18,143.94513509]
[1755806385582,2.91635996,180.24,180.18,144.00513509]
[1755806385784,2.91635996,180.24,180.18,140.12]
[1755806386081,2.91635996,180.24,180.16,3.88513509]
[1755806386280,2.91635996,180.24,180.14,12.29743509]
[1755806386486,2.91635996,180.24,180.15,137.24]
[1755806386686,2.88,180.24,180.15,137.24]
[1755806387085,0.03949442,180.21,180.14,6.74513509]
[1755806387285,2.91949442,180.21,180.15,137.22]
[1755806387784,2.91949442,180.21,180.14,6.74513509]
[1755806387987,2.91949442,180.21,180.11,145.5933]
[1755806388182,2.88,180.19,180.1,3.88513509]
[1755806388384,2.88,180.19,180.1,137.3]
[1755806388585,2.88,180.19,180.11,3.88513509]
[1755806389092,0.04183634,180.16,180.11,3.88513509]
[1755806389288,0.04183634,180.16,180.13,2.86]
[1755806389488,2.92183634,180.16,180.11,6.74513509]
[1755806389688,2.92183634,180.16,180.11,2.86]
[1755806390090,0.04183634,180.16,180.11,2.86]
[1755806390289,0.04183634,180.16,180.1,3.88513509]
[1755806390789,0.04183634,180.16,180.11,2.86]
[1755806390987,0.04183634,180.16,180.1,3.88513509]
[1755806390988,0.04183634,180.16,180.12,2.86]
[1755806391488,2.92183634,180.16,180.09,375.86]
[1755806391692,2.92183634,180.16,180.05,2.86]
[1755806391893,2.88,180.14,180.05,140.18]
[1755806392290,2.88,180.14,180.05,2.86]
[1755806392489,0.0376456,180.11,180.05,2.86]
[1755806392694,0.0376456,180.11,180.06,3.88513509]
[1755806392894,0.0376456,180.11,180.09,2.86]
[1755806393891,0.0376456,180.11,180.08,2.86]
[1755806394094,0.0376456,180.11,180.06,3.88513509]
[1755806394296,0.0376456,180.11,180.08,2.86]
[1755806394786,0.0376456,180.11,180.09,2.86]
[1755806395393,6.08849811,180.23,180.04,137.3]
[1755806395394,2.83,180.19,180.1,3.88513509]
[1755806395600,2.83,180.19,180.12,5.5532]
[1755806395895,2.83,180.19,180.11,2.86]
[1755806396100,2.83,180.19,180.13,5.5526]
[1755806396396,2.83,180.23,180.14,3.88513509]
[1755806396692,2.83,180.23,180.15,2.86]
[1755806397498,2.83,180.23,180.16,5.5519]
[1755806397693,2.83,180.23,180.15,2.86]
[1755806397894,2.83,180.22,180.15,2.86]
[1755806398496,3.88513509,180.25,180.15,6.74513509]
[1755806398695,2.83,180.26,180.16,2.86]
[1755806398894,2.83,180.26,180.16,8.4119]
[1755806399295,2.83,180.24,180.16,2.86]
[1755806399694,3.88513509,180.23,180.13,3.88513509]
[1755806399895,2.83,180.22,180.13,3.88513509]
[1755806401202,2.83,180.22,180.13,9.43803509]
[1755806401599,2.83,180.22,180.13,3.88513509]
[1755806402296,2.83,180.22,180.13,9.43773509]
[1755806402500,2.83,180.22,180.14,2.86]
[1755806403502,2.83,180.22,180.15,5.552]
[1755806403703,2.83,180.22,180.14,2.86]
[1755806403896,5.48890153,180.21,180.14,2.86]
[1755806404097,3.88513509,180.24,180.14,6.74513509]
[1755806404297,2.65944281,180.23,180.17,2.86]
[1755806404601,2.83,180.24,180.17,2.86]
[1755806404791,530.88513509,180.36,180.18,3.88513509]
[1755806404792,2.83,180.28,180.18,3.88513509]
[1755806404996,2.83,180.28,180.19,2.86]
[1755806404997,2.66026719,180.27,180.19,2.86]
[1755806405193,2.83,180.28,180.19,6.74513509]
[1755806405393,2.83,180.31,180.21,3.88513509]
[1755806405601,2.83,180.31,180.25,2.86]
[1755806405602,2.66093706,180.3,180.25,2.86]
[1755806405901,2.66093706,180.3,180.27,2.86]
[1755806406200,6.71513509,180.34,180.24,2.86]
[1755806406500,2.66085218,180.33,180.27,0.03563208]